Cogmind - Beta 10.2 @@@ ROGUE MODE // 2021.04.09 @ 14:53:20 Player: cavemonk Result: Destroyed by Lightning with EMDS Performance ------------- Evolutions (5) 2500 Regions Visited (19) 3800 Robots Destroyed (280) 1400 Value Destroyed (10718) 10718 Prototype IDs (68) 1360 Alien Tech Used (0) 0 Bonus (4923) 4923 TOTAL SCORE: 24701 Bonus ------- High Alert Combat Kills 2211 Follower Combat Kills 1971 Network Hubs Disabled 400 Aligned with FarCom 300 Met Data Miner 300 Met Imprinter 300 Was Imprinted 300 Met Zhirov 300 Met R17 at Cetus 500 Read Decrypted Archives 300 Friendly Fire -1959 Cogmind --------- Core Integrity 0/1000 Matter 53/300 Energy 903/925 System Corruption 39% Temperature Cool (0) Movement Treading (180) Ox1 Location -5/Hub_04(d) Parts ------- > --- POWER (1) -------- Antimatter Reactor > --- PROPULSION (2) --- Centrium Heavy Treads > --- UTILITY (11) ----- Large Storage Unit High-capacity Storage Unit High-capacity Storage Unit Improved Energy Well Experimental Signal Interpreter Experimental Targeting Computer Experimental Core Analyzer Armor Integrity Analyzer Improved Weapon Cycler Bomb Drone Bay (15/16) > --- WEAPON (3) ------- Improved KE Penetrator Tri-rail Accelerator > --- INVENTORY (26) --- Quantum Reactor Improved Energy Well (600) Improved Energy Well (485) Long-range Sensor Array Armor Integrity Analyzer Improved Transmission Jammer Experimental Thermal Shield Experimental Thermal Shield Advanced Field Recycling Unit (81) Tri-rail Accelerator Tri-rail Accelerator Smartbomb Launcher Smartbomb Launcher Peak State ------------ > --- POWER ------------ Quantum Reactor > --- PROPULSION ------- Centrium Heavy Treads > --- UTILITY ---------- Advanced Cooling System High-capacity Storage Unit High-capacity Storage Unit Humpback Experimental Core Analyzer Centrium Medium Armor Plating Centrium Medium Armor Plating Centrium Medium Armor Plating Medium Regenerative Plating Experimental Thermal Shield > --- WEAPON ----------- Improved KE Penetrator Improved KE Penetrator Improved KE Penetrator > --- INVENTORY -------- Quantum Reactor Quantum Reactor Quantum Reactor Quantum Reactor Centrium Heavy Treads Advanced Heat Sink Large Storage Unit Improved Energy Well Improved Energy Well Improved Matter Compressor Long-range Sensor Array Long-range Sensor Array Experimental Sensor Array Experimental Signal Interpreter Experimental Terrain Scanner Improved Transmission Jammer Advanced Transmission Jammer Light Regenerative Plating Long-range Tractor Beam Advanced Recalibrator Advanced Field Recycling Unit Bomb Drone Bay Advanced Variable Charge Gun Advanced Variable Charge Gun Advanced Variable Charge Gun Mass Driver Tri-rail Accelerator Tri-rail Accelerator Tri-rail Accelerator Tri-rail Accelerator Proton Missile Launcher Proton Missile Launcher Precision Grenade Launcher Precision Grenade Launcher [Rating: 140] Favorites ----------- Power Heavy Deuterium Engine Engine Heavy Deuterium Engine Power Core Reinforced Fission Core Reactor Quantum Reactor Propulsion Light Treads Treads Light Treads Leg Aluminum Leg Wheel Armored Huge Wheel Hover Unit Aerolev Unit Utility High-capacity Storage Unit Device Experimental Sensor Array Storage High-capacity Storage Unit Processor Advanced Signal Interpreter Protection Light Regenerative Plating Weapon Flak Gun Energy Gun AWS/EX-DEC Energy Cannon Cooled Plasma Cannon Ballistic Gun Flak Gun Ballistic Cannon Magnetic Acceleration Cannon Launcher Proton Missile Launcher Special Weapon Mining Laser Slashing Weapon Mining Claw Build | -11 -10 -10 -10 -9 -8 -7 -7 -7 -6 -6 -6 -6 -6 -5 -5 -5 -5 -5 -5 ------- Run | Scr Mat Min Exi Min Mat Fac Low Dat Pro Fac Low Low Zio Pro Fac Ext Cet Arc Hub Slots Evolved 10 | . . . . . 4 2 . . . 2 . . . . 2 . . . . Power . | . . . . . . . . . . . . . . . . . . . . Propulsion . | . . . . . . . . . . . . . . . . . . . . Utility 9 | . . . . . 3 2 . . . 2 . . . . 2 . . . . Weapon 1 | . . . . . 1 . . . . . . . . . . . . . . Parts Attached 455 | 3 24 8 23 . 16 53 1 . 3 76 6 14 9 1 69 30 61 6 52 Power 26 | . 1 . 2 . 1 3 . . . 4 . . . 1 3 1 2 1 7 Engine 12 | . 1 . 1 . . 3 . . . 4 . . . 1 1 . . . 1 Core 6 | . . . 1 . 1 . . . . . . . . . 2 1 . . 1 Reactor 8 | . . . . . . . . . . . . . . . . . 2 1 5 Propulsion 27 | 2 3 2 4 . . 3 . . . 5 . . . . 3 . 3 . 2 Treads 24 | 1 3 2 4 . . 1 . . . 5 . . . . 3 . 3 . 2 Leg . | . . . . . . . . . . . . . . . . . . . . Wheel 2 | 1 . . . . . 1 . . . . . . . . . . . . . Hover 1 | . . . . . . 1 . . . . . . . . . . . . . Flight . | . . . . . . . . . . . . . . . . . . . . Utility 226 | 1 4 2 3 . 11 27 1 . 3 43 . 5 6 . 44 19 30 3 24 Device 137 | 1 . . . . 5 15 1 . 2 33 . 4 1 . 28 13 19 1 14 Storage 21 | . 3 2 1 . 2 1 . . 1 2 . . . . 4 . 1 . 4 Processor 15 | . . . . . 1 3 . . . . . . 4 . 1 . 1 1 4 Hackware . | . . . . . . . . . . . . . . . . . . . . Protection 53 | . 1 . 2 . 3 8 . . . 8 . 1 1 . 11 6 9 1 2 Artifact . | . . . . . . . . . . . . . . . . . . . . Weapon 176 | . 16 4 14 . 4 20 . . . 24 6 9 3 . 19 10 26 2 19 Energy Gun 22 | . 2 . 1 . . . . . . 6 . . . . 4 1 6 . 2 Energy Cannon 11 | . . . . . . . . . . . . . . . 1 . . . 10 Ballistic Gun 71 | . 4 2 9 . 3 14 . . . 11 3 2 2 . 4 . 14 1 2 Ballistic Cannon 26 | . 2 . . . . . . . . 3 . 5 . . 8 3 1 . 4 Launcher 42 | . 5 1 4 . 1 6 . . . 4 3 2 1 . 2 6 5 1 1 Special Weapon 3 | . 3 . . . . . . . . . . . . . . . . . . Impact Weapon . | . . . . . . . . . . . . . . . . . . . . Slashing Weapon 1 | . . 1 . . . . . . . . . . . . . . . . . Piercing Weapon . | . . . . . . . . . . . . . . . . . . . . Special Melee Weapon . | . . . . . . . . . . . . . . . . . . . . Unidentified Prototypes 30 | . . 1 1 . 2 3 . . 2 2 . . 4 . 2 . 7 . 6 Parts Lost 25 | . . . 4 . . 1 . . . 3 . . . . 1 . . 5 11 Power 3 | . . . 1 . . . . . . . . . . . . . . 1 1 Propulsion 3 | . . . 1 . . . . . . . . . . . . . . . 2 Utility 9 | . . . 1 . . 1 . . . . . . . . 1 . . 2 4 Weapon 10 | . . . 1 . . . . . . 3 . . . . . . . 2 4 Highest Loss Streak 6 | . . . 4 . . 1 . . . 1 . . . . 1 . . 5 6 Average Slot Usage (%) 88 | . 99 99 85 71 80 82 84 84 83 90 92 93 93 93 87 81 85 83 89 Engine 5 | . 14 14 12 14 . 5 7 7 7 5 6 6 6 6 . . . . . Core 1 | . . . . . 8 1 . . . . . . . . 4 4 . . . Treads 12 | . 19 28 26 28 18 6 . . . 9 13 13 13 13 8 5 5 5 4 Wheel 1 | . 8 . . . . 3 7 7 7 1 . . . . . . . . . Device 8 | . . . . . 7 8 6 7 6 12 6 5 6 6 11 14 13 15 21 Storage 19 | . 23 27 15 14 10 15 15 15 15 19 20 20 20 20 21 23 22 18 18 Processor 11 | . . . . . 8 14 15 15 15 13 13 13 19 20 16 17 7 10 14 Protection 6 | . 4 . 7 . 9 6 7 7 7 6 13 13 6 6 6 2 10 11 6 Energy Gun 2 | . 8 . 7 14 9 4 . . . . . . . . 2 . 2 . 2 Ballistic Gun 9 | . 10 14 12 . 8 12 23 23 23 16 6 8 1 13 . . 12 12 . Ballistic Cannon 3 | . . . . . . . . . . 1 6 8 11 . 8 6 . . 2 Launcher 2 | . 5 10 . . . . . . . . 5 2 5 6 . 3 1 . . Naked Turns . | . . . . . . . . . . . . . . . . . . . . Heaviest Build 228 | 13 59 59 94 94 137 144 142 139 139 191 190 191 188 175 227 224 228 217 139 Greatest Support 80 | 20 40 40 44 40 40 40 28 28 28 58 58 58 58 58 70 70 80 80 80 Greatest Overweight (x) 10 | 1 4 1 2 2 3 6 5 4 4 6 3 3 3 3 10 3 3 2 1 Average Overweight (x) 2 | . 1 1 1 2 2 3 4 4 4 4 3 3 3 2 3 2 2 1 1 Largest Inventory Capacity 60 | 6 18 18 24 24 32 34 32 32 32 60 40 40 40 40 60 46 46 46 26 Average Capacity 32 | 6 13 17 14 24 25 32 32 32 32 39 40 40 40 40 44 46 45 31 25 Most Carried 46 | 6 18 18 24 24 32 32 32 32 32 40 40 40 40 40 46 46 46 46 26 Average Carried 31 | 5 13 17 13 23 24 31 32 32 31 39 39 39 39 39 44 45 42 28 24 Final Capacity 46 | 6 18 18 24 24 32 32 32 32 32 40 40 40 40 40 46 46 46 26 26 Final Carried 46 | 6 18 18 24 24 32 32 32 32 32 39 40 40 40 40 46 46 46 22 17 Class Distribution -------------------- 30% | Hauler-Mutant 24% | Hauler-Skirmisher 20% | Mutant 13% | Hauler-Gunner 3% | Hauler-Tank Dominant Class ---------------- Mutant | -10/Materials Mutant | -10/Mines Mutant | -10/Exiles Hauler-Mutant | -9/Mines Hauler-Skirmisher | -8/Materials Hauler-Skirmisher | -7/Factory Hauler-Skirmisher | -7/Lower Caves Hauler-Skirmisher | -7/Data Miner Hauler-Skirmisher | -6/Proximity Caves Hauler-Skirmisher | -6/Factory Hauler-Mutant | -6/Lower Caves Hauler-Skirmisher | -6/Lower Caves Hauler-Mutant | -6/Zion Hauler-Mutant | -5/Proximity Caves Hauler-Gunner | -5/Factory Hauler-Mutant | -5/Extension Hauler-Gunner | -5/Cetus Scavenger-Mutant | -5/Archives Scavenger-Gunner | -5/Hub_04(d) Resources | -11 -10 -10 -10 -9 -8 -7 -7 -7 -6 -6 -6 -6 -6 -5 -5 -5 -5 -5 -5 ----------- Run | Scr Mat Min Exi Min Mat Fac Low Dat Pro Fac Low Low Zio Pro Fac Ext Cet Arc Hub Matter Collected 11784 | 248 381 425 2130 . 367 1221 121 . 131 1203 274 445 55 101 1580 830 1291 . 981 Remotely 656 | 17 . . . . . . . . . . . 139 . . . 264 236 . . Salvage Created 11843 | 233 441 168 124 . 368 1763 . . 49 1029 185 551 . 22 1642 1494 1838 239 1697 Parts 584 | 17 25 5 38 . 28 94 . . 2 46 7 20 . 2 73 62 88 5 72 Haulers Intercepted 10 | . 2 . . . . 3 . . . . . . . . 1 1 . . 3 Recyclers Shooed 11 | . 2 . . 1 1 3 . . . 1 . . . . 2 . . . 1 Parts Field Recycled 22 | . . . . . . . . . . . . . . . 15 7 . . . Retrieved Matter 443 | . . . . . . . . . . . . . . . 320 123 . . . Parts Self-Destructed 61 | . . . . . . . 8 . 10 . 5 14 . 24 . . . . . Prevented 10 | . . . . . . . . . . . 4 4 . 2 . . . . . Kills | -11 -10 -10 -10 -9 -8 -7 -7 -7 -6 -6 -6 -6 -6 -5 -5 -5 -5 -5 -5 ------- Run | Scr Mat Min Exi Min Mat Fac Low Dat Pro Fac Low Low Zio Pro Fac Ext Cet Arc Hub Combat Hostiles Destroyed 181 | . 10 . 5 . 8 15 . . 1 15 6 10 . 1 22 21 38 6 23 Guns 50 | . 1 . 1 . 4 11 . . 1 10 . 1 . . 6 . 12 2 1 Cannons 40 | . . . . . . . . . . 3 . 2 . . 13 5 . . 17 AOE 82 | . 9 . 4 . 3 4 . . . 2 6 7 . 1 3 15 21 4 3 Classes Destroyed 21 | 3 4 . 3 . 1 3 . . 1 1 . 2 . . 1 . . . 2 Worker 18 | 2 3 . . . . 6 . . . 3 . . . . . 1 . . 3 Builder 10 | . . . . . . 2 . . . . . . . . 4 3 . . 1 Tunneler 7 | 5 . . . . . . . . . . . . . . . 1 . . 1 Hauler 10 | . 2 . . . . 3 . . . . . . . . 1 1 . . 3 Recycler 25 | 1 2 1 . . 1 9 . . . 2 . . . . 4 4 . . 1 Minesweeper 1 | . . . . . . . . . 1 . . . . . . . . . . Operator 3 | . . . . . . . . . . 1 . . . . 1 1 . . . Turret 1 | . . . 1 . . . . . . . . . . . . . . . . Watcher 16 | . 1 . . . 2 5 . . . 1 . . . . 1 2 1 . 3 Swarmer 51 | . 6 . . . 4 3 . . 1 1 6 2 . 1 1 7 16 . 3 Saboteur 1 | . . . . . . . . . . . . . . . . . . . 1 Grunt 42 | . 4 . . . . 2 . . . 3 . 3 . . 6 6 11 4 3 Brawler 7 | . . . . . . 1 . . . 1 . 2 . . 3 . . . . Duelist 2 | . . . . . . . . . . . . 1 . . . . . . 1 Protector 1 | . . . . . . . . . . . . . . . . . . . 1 Sentry 20 | . . . . . 4 4 . . . 3 . 1 . . . 4 . 2 2 Hunter 9 | . . . . . . . . . . . . . . . 1 4 2 . 2 Programmer 31 | . . . . . . 5 . . . 7 . 1 . . 11 . 1 . 6 Cetus Guard 8 | . . . . . . . . . . . . . . . . . 8 . . Lightning 4 | . . . . . . . . . . . . . . . . . . . 4 Zionite 8 | . . . 8 . . . . . . . . . . . . . . . . Z-Courier 1 | . . . . . . . . . . . . . . . . . 1 . . Samaritan 1 | . . . . . . . . . . . . 1 . . . . . . . Assembled 4 | . . . 4 . . . . . . . . . . . . . . . . Thug 1 | . . . . . . . . . . . . . . . . 1 . . . Butcher 1 | . . . . . . . . . . . . . . . . 1 . . . Best Kill Streak 10 | 4 4 1 6 . 4 9 . . 1 3 3 8 . 1 7 10 8 4 6 Combat Bots Only 8 | . 3 . 4 . 4 5 . . 1 3 3 8 . 1 4 8 8 4 5 Max Kills in Single Turn 5 | 2 2 1 3 . 3 4 . . 1 2 2 3 . 1 4 5 5 3 2 Gunslinging . | . . . . . . . . . . . . . . . . . . . . Exploded 4 | . 2 . 3 . 3 3 . . . 2 2 3 . 1 2 4 4 3 1 Melee . | . . . . . . . . . . . . . . . . . . . . Uniques/NPCs Destroyed 5 | . . 1 4 . . . . . . . . . . . . . . . . YI-UF0 (-10/Mines) EX-BIN (-10/Exiles) 8R-AWN (-10/Exiles) EX-HEX (-10/Exiles) EX-DEC (-10/Exiles) Combat | -11 -10 -10 -10 -9 -8 -7 -7 -7 -6 -6 -6 -6 -6 -5 -5 -5 -5 -5 -5 -------- Run | Scr Mat Min Exi Min Mat Fac Low Dat Pro Fac Low Low Zio Pro Fac Ext Cet Arc Hub Damage Taken 13777 | 38 327 . 1153 . 99 682 . . 605 1014 163 95 . 11 1942 499 1737 1761 3651 Core 1594 | . 23 . 213 . . 117 . . 35 184 16 . . . 284 55 93 43 531 Absorbed by Shields 332 | . . . . . . . . . . 108 . . . . . 193 31 . . Core Remaining (%) 71 | 100 . . . 5 100 . . . 78 . . . . 76 . . . . . Volleys Fired 555 | 18 44 1 64 . 7 60 . . 4 44 14 16 . 3 82 42 76 5 75 Largest 3 | 2 2 2 2 . 1 3 . . 3 3 1 3 . 1 3 2 3 3 3 Hottest 445 | 60 100 46 60 . 33 84 . . 84 159 39 159 . 39 117 117 175 105 445 Shots Fired 1106 | 36 62 2 108 . 25 158 . 1 15 118 14 39 . 3 138 58 156 9 164 Gun 686 | 36 41 2 84 . 24 152 . 1 15 100 . 13 . . 31 . 127 7 53 Cannon 274 | . . . . . . . . . . 15 . 18 . . 101 32 1 . 107 Launcher 140 | . 15 . 24 . 1 6 . . . 3 14 8 . 3 6 26 28 2 4 Special 6 | . 6 . . . . . . . . . . . . . . . . . . Kinetic 685 | 18 24 2 84 . 6 111 . 1 15 106 . 31 . . 110 32 85 7 53 Thermal 142 | . 23 . . . . . . . . 1 . . . . 7 . 6 . 105 Explosive 77 | . 15 . 24 . 1 6 . . . . 6 3 . . 2 9 7 . 4 Electromagnetic 202 | 18 . . . . 18 41 . . . 11 8 5 . 3 19 17 58 2 2 Robot Hit Streak 40 | 5 12 8 17 . 14 11 . . 5 30 4 8 . . 11 17 40 3 21 Robot Miss Streak 10 | 10 1 . 3 . 2 5 . . 5 3 1 3 . . 5 2 3 1 4 Penetration Max 1 | . . . . . . 1 . . . . . . . . . 1 1 . 1 Secondary Targets 5 | . . . . . . . . . . . . . . . 1 . 4 . . Max Gunslinging Chain 1 | . . . . . . . . . . . . . . . 1 . 1 . . Autonomous 59 | . . . . . 18 41 . . . . . . . . . . . . . Shots Hit Robots 650 | 10 41 3 46 . 20 86 . . 5 76 6 25 . . 79 31 108 5 109 Core Hits 628 | 8 25 2 40 . 14 77 . 3 12 69 9 30 . 2 91 75 84 11 76 Critical Hits 25 | . . . . . . 5 . . . 1 . . . . 2 . 13 2 2 Critical Kills 9 | . . . . . . 2 . . . 1 . . . . 1 . 3 2 . Critical Parts Destroyed 12 | . . . . . . 2 . . . . . . . . . . 8 . 2 Melee Attacks 2 | . . 2 . . . . . . . . . . . . . . . . . Impact . | . . . . . . . . . . . . . . . . . . . . Slashing 2 | . . 2 . . . . . . . . . . . . . . . . . Piercing . | . . . . . . . . . . . . . . . . . . . . Sneak Attacks 2 | . . 2 . . . . . . . . . . . . . . . . . Combat Hostiles . | . . . . . . . . . . . . . . . . . . . . Follow-up Attacks . | . . . . . . . . . . . . . . . . . . . . Damage Inflicted 31245 | 265 1242 167 1517 8 671 3031 . 27 290 2800 617 1355 . 25 3856 5086 4383 674 5231 Guns 10494 | 123 473 18 761 . 518 2198 . 27 277 1835 . 261 . . 531 . 2345 163 964 Cannons 7454 | . . . . . . . . . . 316 . 206 . . 2270 1438 . . 3224 Explosions 12894 | 142 749 . 756 . 150 791 . . . 648 617 888 . 25 1001 3566 2038 511 1012 Melee 142 | . . 142 . . . . . . . . . . . . . . . . . Ramming 261 | . 20 7 . 8 3 42 . . 13 1 . . . . 54 82 . . 31 Kinetic 12845 | 16 273 18 761 . 62 1634 . 27 277 1996 . 467 . . 2577 1438 1736 163 1400 Thermal 4516 | 142 200 . . . . 69 . . . 299 . 55 . . 33 493 . 437 2788 Explosive 8465 | . 749 . 756 . 150 722 . . . 166 318 399 . . 854 2472 1359 . 520 Electromagnetic 5016 | 107 . . . . 456 564 . . . 338 299 434 . 25 338 601 1288 74 492 Impact . | . . . . . . . . . . . . . . . . . . . . Slashing 142 | . . 142 . . . . . . . . . . . . . . . . . Piercing . | . . . . . . . . . . . . . . . . . . . . Highest Corruption 39 | . . . . . 1 8 8 8 8 2 2 2 2 . 13 13 13 13 39 Average Corruption 9 | . . . . . 1 6 8 8 8 1 2 2 2 . 8 13 13 13 19 Corruption Purged . | . . . . . . . . . . . . . . . . . . . . Effects 555 | . . . . . 2 35 3 2 44 4 9 8 2 . 87 86 97 28 148 Message Errors 113 | . . . . . 1 3 2 . 15 3 5 3 1 . 20 22 15 3 20 Matter Fused 100 | . . . . . . 10 . . 5 . . . . . 20 16 11 8 30 Heat Flow Errors 50 | . . . . . . 4 . 1 3 . 2 3 1 . 9 7 8 2 10 Energy Discharges 56 | . . . . . 1 5 . . 8 . 2 . . . 10 4 10 4 12 Parts Rejected 7 | . . . . . . 1 . . . . . . . . . 1 3 . 2 Data Loss (minor) 39 | . . . . . . 4 1 . 5 1 . 2 . . 6 6 4 3 7 Data Loss (major) 9 | . . . . . . 1 . . 2 . . . . . 3 1 . 2 . Misfires 17 | . . . . . . 1 . 1 3 . . . . . 2 5 3 . 2 Alerts 6 | . . . . . . . . . . . . . . . 1 2 2 . 1 Misdirections 54 | . . . . . . . . . . . . . . . 3 13 12 5 21 Targeting Errors 85 | . . . . . . 4 . . 3 . . . . . 12 7 26 1 32 Weapon Failures 19 | . . . . . . 2 . . . . . . . . 1 2 3 . 11 Overload Shots 21 | . . . . . . . . . . . . . . . . . . . 21 Effects 2 | . . . . . . . . . . . . . . . . . . . 2 Heat Surge 2 | . . . . . . . . . . . . . . . . . . . 2 Overflow Damage 856 | . 6 50 37 . . 16 . . . 69 75 41 . . 135 199 18 29 181 Projectiles 124 | . . . . . . . . . . 1 . . . . 51 8 . . 64 Explosions 618 | . 6 . 37 . . 16 . . . 68 75 41 . . 84 136 18 29 108 Melee 114 | . . 50 . . . . . . . . . . . . . 55 . . 9 Knockbacks 49 | . . . . . . 1 . . . 2 . . . . 19 11 . . 16 Impact 2 | . . . . . . 1 . . . . . . . . . 1 . . . Kinetic 44 | . . . . . . . . . . 2 . . . . 18 9 . . 15 Secondary 3 | . . . . . . . . . . . . . . . 1 1 . . 1 Self-Inflicted Damage 1079 | 38 . . 28 . 30 . . . 6 412 . . . . 144 40 82 . 299 Shots 26 | 1 . . 2 . 1 . . . . 6 . . . . 4 2 5 . 5 Rammed 20 | . 3 1 . 1 1 2 . . 1 1 . . . . 3 1 . . 6 Targets Rammed 23 | . 5 1 . 1 1 2 . . 1 1 . . . . 3 2 . . 6 Kicked . | . . . . . . . . . . . . . . . . . . . . Crushed 3 | . 2 . . . . . . . . . . . . . . 1 . . . Highest Temperature 401 | 60 156 . 42 . 6 261 . 105 191 185 238 263 204 . 401 254 297 229 373 Average Temperature 70 | 23 32 . 13 . 5 60 . 61 67 48 107 77 110 . 95 59 105 81 74 Received Heat Transfer 1133 | . 120 . . . 18 102 . . 99 187 . . . . 279 52 180 . 96 Effects 9 | . . . . . . 4 . . . . . . . . 1 . 3 . 1 Interference 7 | . . . . . . 4 . . . . . . . . . . 3 . . Matter Decay 1 | . . . . . . . . . . . . . . . . . . . 1 Short Circuit 1 | . . . . . . . . . . . . . . . 1 . . . . Siege Activations . | . . . . . . . . . . . . . . . . . . . . Robots Corrupted 9 | . . . . . 1 . . . . . . . . . . 1 5 . 2 Combat Hostiles 8 | . . . . . 1 . . . . . . . . . . 1 5 . 1 Parts Fried 25 | . . . . . 5 . . . . . 1 . . . 2 4 9 . 4 Impact Corruptions 4 | . . . . . . . . . . . . . . . . 3 . . 1 Robots Melted 1 | . . . . . . . . . . . . . . . . . . . 1 Combat Hostiles 1 | . . . . . . . . . . . . . . . . . . . 1 Parts Melted 19 | . . . . . . . . . . . . . . . . 1 . . 18 Heat Transferred 5300 | 100 592 . . . . 100 . . . 160 . 50 . . 37 500 . 350 3411 Parts Sabotaged 2 | . . . . . . . . . . . . . . . . . . . 2 Parts Stolen . | . . . . . . . . . . . . . . . . . . . . Parts Stripped . | . . . . . . . . . . . . . . . . . . . . Power Chain Reactions 14 | 2 . . . . . 1 . . . . . 1 . . . 5 1 4 . Missiles Intercepted . | . . . . . . . . . . . . . . . . . . . . Alert | -11 -10 -10 -10 -9 -8 -7 -7 -7 -6 -6 -6 -6 -6 -5 -5 -5 -5 -5 -5 ------- Run | Scr Mat Min Exi Min Mat Fac Low Dat Pro Fac Low Low Zio Pro Fac Ext Cet Arc Hub Peak Influence 1376 | 40 112 40 . . 220 610 . . . 690 . . . . 507 973 1376 736 1338 Initial 550 | . 26 40 . . . 23 . . . . . . . . 108 235 497 550 187 Average 322 | 25 63 21 . . 32 259 . . . 304 . . . . 235 435 867 651 669 Maximum Alert Level 4 | . . . . . 1 2 . . . 2 . . . . 2 3 4 3 4 Low Security (%) 48 | 100 100 100 . 100 99 54 . . . 31 . . . . 56 14 . . 2 Level 1 16 | . . . . . . 3 . . . 40 . . . . 25 56 . . 2 Level 2 20 | . . . . . . 42 . . . 27 . . . . 18 3 27 41 48 Level 3 12 | . . . . . . . . . . . . . . . . 25 52 58 44 Level 4 1 | . . . . . . . . . . . . . . . . . 19 . 2 Level 5 . | . . . . . . . . . . . . . . . . . . . . High Security . | . . . . . . . . . . . . . . . . . . . . Max Security . | . . . . . . . . . . . . . . . . . . . . Squads Dispatched 40 | . 3 1 . . . 8 . . 1 8 . 1 . . 7 3 . . 8 Investigation 4 | . 1 1 . . . . . . . . . . . . 1 1 . . . Extermination 19 | . . . . . . 5 . . . 6 . . . . 6 . . . 2 Reinforcement 7 | . 2 . . . . . . . . 1 . . . . . 2 . . 2 Assault 5 | . . . . . . . . . 1 1 . 1 . . . . . . 2 Garrison 5 | . . . . . . 3 . . . . . . . . . . . . 2 Intercept . | . . . . . . . . . . . . . . . . . . . . Construction Impeded 2 | . . . . . . . . . . . . . . . . 2 . . . Haulers Reinforced . | . . . . . . . . . . . . . . . . . . . . Stealth | -11 -10 -10 -10 -9 -8 -7 -7 -7 -6 -6 -6 -6 -6 -5 -5 -5 -5 -5 -5 --------- Run | Scr Mat Min Exi Min Mat Fac Low Dat Pro Fac Low Low Zio Pro Fac Ext Cet Arc Hub Distress Signals 15 | . 3 1 . . 1 2 . . . . . . . . . 4 2 . 2 Communications Jammed 143 | . . . . . . 45 . . . 4 . . . . . 63 . . 31 Distress Signals 143 | . . . . . . 45 . . . 4 . . . . . 63 . . 31 Times Spotted 321 | . 23 . 33 . 9 27 3 . 20 19 4 8 . 9 30 33 48 13 42 Peak Tracking Total 15 | . 5 . 9 . 4 5 3 . 14 4 3 9 . 4 6 11 6 15 9 Tactical Retreats 24 | . 1 . 5 . . . . . 1 . . 3 . 1 4 3 2 1 3 Traps | -11 -10 -10 -10 -9 -8 -7 -7 -7 -6 -6 -6 -6 -6 -5 -5 -5 -5 -5 -5 ------- Run | Scr Mat Min Exi Min Mat Fac Low Dat Pro Fac Low Low Zio Pro Fac Ext Cet Arc Hub Traps Triggered 10 | . 3 . . . 1 2 . . . 4 . . . . . . . . . Indirectly . | . . . . . . . . . . . . . . . . . . . . Trap Hack Attempts . | . . . . . . . . . . . . . . . . . . . . Triggered . | . . . . . . . . . . . . . . . . . . . . Disarmed . | . . . . . . . . . . . . . . . . . . . . Reprogrammed . | . . . . . . . . . . . . . . . . . . . . Reused 1 | . . . . . . . . . 1 . . . . . . . . . . Traps Extracted . | . . . . . . . . . . . . . . . . . . . . Installed 12 | . . . . . . . . . 12 . . . . . . . . . . Triggered 4 | . . . . . . . . . 2 . 2 . . . . . . . . Machines | -11 -10 -10 -10 -9 -8 -7 -7 -7 -6 -6 -6 -6 -6 -5 -5 -5 -5 -5 -5 ---------- Run | Scr Mat Min Exi Min Mat Fac Low Dat Pro Fac Low Low Zio Pro Fac Ext Cet Arc Hub Machines Disabled 75 | . 2 . 10 . 1 9 . . . 9 1 . . . 6 4 10 4 19 Max in Single Turn 8 | . 1 . 1 . 1 6 . . . 2 1 . . . 2 1 2 2 8 Garrison Access 2 | . . . . . . 1 . . . . . . . . . . . . 1 Network Hub 2 | . . . . . . . . . . . . . . . . . . . 2 Machines Sabotaged . | . . . . . . . . . . . . . . . . . . . . Garrisons Compromised . | . . . . . . . . . . . . . . . . . . . . Overloaded Fab Kills . | . . . . . . . . . . . . . . . . . . . . Fab Network Shutdowns 1 | . . . . . . . . . . 1 . . . . . . . . . Hacking | -11 -10 -10 -10 -9 -8 -7 -7 -7 -6 -6 -6 -6 -6 -5 -5 -5 -5 -5 -5 --------- Run | Scr Mat Min Exi Min Mat Fac Low Dat Pro Fac Low Low Zio Pro Fac Ext Cet Arc Hub Machines Accessed 44 | . 8 1 1 1 6 8 . 4 . 5 1 . . . 7 . . 1 1 Terminals 17 | . 6 . . . 5 3 . . . 2 1 . . . . . . . . Fabricators 4 | . . . . . . 1 . . . 1 . . . . 2 . . . . Repair Stations 4 | . 1 . . . . 1 . . . 1 . . . . 1 . . . . Recycling Units 3 | . 1 . . . . . . . . . . . . . 2 . . . . Scanalyzers 6 | . . . . . 1 2 . . . 1 . . . . 2 . . . . Garrison Access 2 | . . . . . . 1 . . . . . . . . . . . . 1 Total Hacks 156 | . 33 1 1 1 18 21 . 26 . 16 1 . . . 12 . . 25 1 Successful 108 | . 18 1 1 1 13 8 . 26 . 8 1 . . . 6 . . 25 . Failed 48 | . 15 . . . 5 13 . . . 8 . . . . 6 . . . 1 Catastrophic 7 | . 1 . . . 1 2 . . . 2 . . . . . . . . 1 Database Lockouts . | . . . . . . . . . . . . . . . . . . . . Manual 100 | . 19 . 1 . 5 12 . . . 5 . . . . 6 14 18 1 19 Terminals 55 | . 29 . . . 10 11 . . . 4 1 . . . . . . . . Fabricators 9 | . . . . . . 2 . . . 4 . . . . 3 . . . . Repair Stations 8 | . 2 . . . . 2 . . . 2 . . . . 2 . . . . Recycling Units 6 | . 2 . . . . . . . . . . . . . 4 . . . . Scanalyzers 22 | . . . . . 8 5 . . . 6 . . . . 3 . . . . Garrison Access 2 | . . . . . . 1 . . . . . . . . . . . . 1 Terminal Hacks 71 | . 8 1 1 1 5 2 . 26 . 1 1 . . . . . . 25 . Record 37 | . . . . . . . . 11 . . 1 . . . . . . 25 . Part Schematic 5 | . . . . . . . . 5 . . . . . . . . . . . Robot Schematic 7 | . . . . . . . . 7 . . . . . . . . . . . Robot Analysis 1 | . . . . . 1 . . . . . . . . . . . . . . Prototype ID Bank 6 | . 2 . . . 1 . . 3 . . . . . . . . . . . Open Door 2 | . . 1 . 1 . . . . . . . . . . . . . . . Branch Access Points 2 | . 1 . . . . 1 . . . . . . . . . . . . . Terminal Index 3 | . 1 . . . . 1 . . . 1 . . . . . . . . . Alert Level 1 | . 1 . . . . . . . . . . . . . . . . . . Unreport Threat 2 | . . . . . 2 . . . . . . . . . . . . . . Locate Traps 1 | . 1 . . . . . . . . . . . . . . . . . . Hauler Manifests 1 | . 1 . . . . . . . . . . . . . . . . . . Zone Layout 2 | . 1 . . . 1 . . . . . . . . . . . . . . EX-Prototype ID Bank 1 | . . . 1 . . . . . . . . . . . . . . . . Fabricator Hacks 5 | . . . . . . 1 . . . 2 . . . . 2 . . . . Load Schematic 2 | . . . . . . . . . . 1 . . . . 1 . . . . Build 3 | . . . . . . 1 . . . 1 . . . . 1 . . . . Repair Station Hacks 4 | . 2 . . . . 1 . . . 1 . . . . . . . . . Scan Component 3 | . 1 . . . . 1 . . . 1 . . . . . . . . . Repair 1 | . 1 . . . . . . . . . . . . . . . . . . Recycling Unit Hacks 3 | . 2 . . . . . . . . . . . . . 1 . . . . Process 1 | . 1 . . . . . . . . . . . . . . . . . . Retrieve Matter 1 | . 1 . . . . . . . . . . . . . . . . . . Retrieve Components 1 | . . . . . . . . . . . . . . . 1 . . . . Scanalyzer 15 | . . . . . 7 2 . . . 4 . . . . 2 . . . . Insert Component 7 | . . . . . 3 1 . . . 2 . . . . 1 . . . . Analyze 8 | . . . . . 4 1 . . . 2 . . . . 1 . . . . Garrison Access Hacks 1 | . . . . . . 1 . . . . . . . . . . . . . Seal Access 1 | . . . . . . 1 . . . . . . . . . . . . . Unauthorized Hacks 9 | . 6 . . . 1 1 . . . . . . . . 1 . . . . Terminals 8 | . 6 . . . 1 1 . . . . . . . . . . . . . Track 3 | . 3 . . . . . . . . . . . . . . . . . . Botnet 4 | . 2 . . . 1 1 . . . . . . . . . . . . . Operators 1 | . 1 . . . . . . . . . . . . . . . . . . Fabricators . | . . . . . . . . . . . . . . . . . . . . Repair Stations . | . . . . . . . . . . . . . . . . . . . . Recycling Units 1 | . . . . . . . . . . . . . . . 1 . . . . Mask 1 | . . . . . . . . . . . . . . . 1 . . . . Scanalyzers . | . . . . . . . . . . . . . . . . . . . . Garrison Access . | . . . . . . . . . . . . . . . . . . . . Data Cores Recovered . | . . . . . . . . . . . . . . . . . . . . Used . | . . . . . . . . . . . . . . . . . . . . Hacking Detections 32 | . 7 . . . 6 7 . . . 5 . . . . 6 . . . 1 Full Trace Events 1 | . 1 . . . . . . . . . . . . . . . . . . Feedback Events . | . . . . . . . . . . . . . . . . . . . . Feedback Blocked . | . . . . . . . . . . . . . . . . . . . . Robot Schematics Acquired 7 | . . . . . . . . 7 . . . . . . . . . . . Robots Built 3 | . . . . . . 3 . . . . . . . . . . . . . Matter 252 | . . . . . . 252 . . . . . . . . . . . . . Time 67 | . . . . . . 67 . . . . . . . . . . . . . Total Robot Build Rating 12 | . . . . . . 12 . . . . . . . . . . . . . Part Schematics Acquired 10 | . . . . . 2 . . 5 . 2 . . . . 1 . . . . Parts Built 2 | . . . . . . . . . . 1 . . . . 1 . . . . Matter 570 | . . . . . . . . . . 285 . . . . 285 . . . . Time 152 | . . . . . . . . . . 76 . . . . 76 . . . . Total Part Build Rating 10 | . . . . . . . . . . 5 . . . . 5 . . . . Parts Repaired 1 | . 1 . . . . . . . . . . . . . . . . . . Time 26 | . 26 . . . . . . . . . . . . . . . . . . Parts Recycled . | . . . . . . . . . . . . . . . . . . . . Recycled Matter 198 | . 198 . . . . . . . . . . . . . . . . . . Retrieved Matter 362 | . 362 . . . . . . . . . . . . . . . . . . Retrieved Components . | . . . . . . . . . . . . . . . . . . . . Parts Scanalyzed 6 | . . . . . 2 1 . . . 2 . . . . 1 . . . . Part Schematics Acquired 5 | . . . . . 2 . . . . 2 . . . . 1 . . . . Parts Damaged . | . . . . . . . . . . . . . . . . . . . . Bothacking | -11 -10 -10 -10 -9 -8 -7 -7 -7 -6 -6 -6 -6 -6 -5 -5 -5 -5 -5 -5 ------------ Run | Scr Mat Min Exi Min Mat Fac Low Dat Pro Fac Low Low Zio Pro Fac Ext Cet Arc Hub Used RIF Installer . | . . . . . . . . . . . . . . . . . . . . Robots Hacked . | . . . . . . . . . . . . . . . . . . . . Non-combat . | . . . . . . . . . . . . . . . . . . . . Combat . | . . . . . . . . . . . . . . . . . . . . Robot Hacks Applied . | . . . . . . . . . . . . . . . . . . . . Relay Couplers Released 1 | . . . . . . . . . . . . . . . . . . . 1 Machine Destruction 1 | . . . . . . . . . . . . . . . . . . . 1 Robots Rewired 21 | . . . . . . . . . . . . 2 . . . 19 . . . Allies Hacked . | . . . . . . . . . . . . . . . . . . . . Hacks Repelled . | . . . . . . . . . . . . . . . . . . . . Allies | -11 -10 -10 -10 -9 -8 -7 -7 -7 -6 -6 -6 -6 -6 -5 -5 -5 -5 -5 -5 -------- Run | Scr Mat Min Exi Min Mat Fac Low Dat Pro Fac Low Low Zio Pro Fac Ext Cet Arc Hub Total Allies 60 | . . 3 . . . 3 . . 1 . . 2 14 . 1 29 4 . 3 Largest Group 16 | . . 3 3 . . 3 3 3 3 . . 2 16 16 7 15 4 . 2 Highest-Rated Group 547 | . . 40 40 . . 90 90 90 124 . . 59 456 456 222 547 242 . 44 Highest-Rated Ally 156 | . . 16 16 . . 30 30 30 94 . . 30 37 37 37 156 143 . 29 Zionite Dispatches 10 | . . . . . . . . . . . . . . . 1 3 3 . 3 Recon 1 | . . . . . . . . . . . . . . . . . 1 . . Fire 1 | . . . . . . . . . . . . . . . . 1 . . . Hacker 1 | . . . . . . . . . . . . . . . . 1 . . . Demo 1 | . . . . . . . . . . . . . . . . 1 . . . Melee Resupply 1 | . . . . . . . . . . . . . . . . . . . 1 Resource Resupply 1 | . . . . . . . . . . . . . . . 1 . . . . Infowar Resupply 3 | . . . . . . . . . . . . . . . . . 2 . 1 Hacking Resupply 1 | . . . . . . . . . . . . . . . . . . . 1 Total Orders 6 | . . . . . . . . . . . . . . . 1 . 3 . 2 DROP 5 | . . . . . . . . . . . . . . . 1 . 2 . 2 EXPLORE 1 | . . . . . . . . . . . . . . . . . 1 . . Ally Attacks 428 | . . . 49 . . . 11 . 25 . . . . 126 7 160 50 . . Total Damage 10455 | . . . 1289 . . . 320 . 572 . . . . 2483 380 3890 1521 . . Kills 65 | . . . 4 . . . 3 . 5 . . . . 18 4 24 7 . . Allies Corrupted 2 | . . . . . . . . . . . . . . 1 . . 1 . . Allies Melted 1 | . . . . . . . . . . . . . . . . . . 1 . Turrets Deployed 3 | . . . 3 . . . . . . . . . . . . . . . . Intel | -11 -10 -10 -10 -9 -8 -7 -7 -7 -6 -6 -6 -6 -6 -5 -5 -5 -5 -5 -5 ------- Run | Scr Mat Min Exi Min Mat Fac Low Dat Pro Fac Low Low Zio Pro Fac Ext Cet Arc Hub Robot Analysis Total 1 | . . . . . 1 . . . . . . . . . . . . . . Derelict Logs Recovered 5 | . . 1 . . . . . . . . 2 . 1 1 . . . . . Drone Launches 3 | . . . . . . . . . . . . . . . . . 2 . 1 Drone Recoveries . | . . . . . . . . . . . . . . . . . . . . Zionite Intel Received 6 | . . . . . . . . . . . . . . . 1 2 1 . 2 Branch Access 1 | . . . . . . . . . . . . . . . 1 . . . . Guard Positions 1 | . . . . . . . . . . . . . . . . . . . 1 Component Stockpiles 1 | . . . . . . . . . . . . . . . . . . . 1 Prototype Stockpiles 1 | . . . . . . . . . . . . . . . . 1 . . . Depthwide Sectors/0 1 | . . . . . . . . . . . . . . . . 1 . . . Depthwide Sectors/-1 1 | . . . . . . . . . . . . . . . . . 1 . . Exploration | -11 -10 -10 -10 -9 -8 -7 -7 -7 -6 -6 -6 -6 -6 -5 -5 -5 -5 -5 -5 ------------- Run | Scr Mat Min Exi Min Mat Fac Low Dat Pro Fac Low Low Zio Pro Fac Ext Cet Arc Hub Turns Passed 29399 | 192 2787 773 3020 84 1070 2327 255 112 1313 2883 1545 704 2162 1261 3291 1753 1483 499 1885 Spaces Moved 12467 | 78 1369 400 1521 41 445 1028 178 79 629 1020 622 282 968 533 1123 616 469 258 808 Core . | . . . . . . . . . . . . . . . . . . . . Treads 9941 | 51 607 400 1521 41 445 419 . . . 778 622 282 968 533 1123 616 469 258 808 Legs 10 | 10 . . . . . . . . . . . . . . . . . . . Wheels 2516 | 17 762 . . . . 609 178 79 629 242 . . . . . . . . . Hover . | . . . . . . . . . . . . . . . . . . . . Flight . | . . . . . . . . . . . . . . . . . . . . Fastest Speed 90 | 90 90 180 152 200 200 140 140 140 140 140 220 220 220 200 200 200 200 180 180 Average Speed 189 | 139 135 180 178 200 203 178 140 140 140 216 220 220 220 202 226 210 204 184 180 Slowest Speed 370 | 160 180 180 200 200 220 280 150 140 140 240 220 220 220 220 370 220 220 200 180 Overloaded Moves . | . . . . . . . . . . . . . . . . . . . . Propulsion Burnouts . | . . . . . . . . . . . . . . . . . . . . Robots Hopped 1 | . . . 1 . . . . . . . . . . . . . . . . Cave-ins Triggered . | . . . . . . . . . . . . . . . . . . . . Exploration Rate (%) 57 | 5 95 89 92 14 38 31 29 70 69 23 70 38 87 68 28 63 89 99 44 Regions Visited 19 Branch Regions 14 Pre-discovered Areas 17 | . . . . . . . . 1 . . 1 . 1 . . 10 4 . . Known Exits Taken 14 | . 1 . . . 1 1 1 1 1 1 1 1 1 1 1 1 . 1 . Unknown Exits Taken 5 | 1 . 1 1 1 . . . . . . . . . . . . 1 . . Scrap Searched 16 | . . 1 . . . . 2 . 2 . 2 4 3 2 . . . . . Spaces Dug 74 | . 6 . 23 . . 15 . . . . 5 . . . 17 1 . . 7 Terrain Destroyed 1022 | 4 66 . 54 . 9 86 . . . 73 19 35 . . 129 128 23 7 389 Melee . | . . . . . . . . . . . . . . . . . . . . Projectile 183 | . 6 . . . . . . . . 1 . 7 . . 67 19 21 3 59 AOE 839 | 4 60 . 54 . 9 86 . . . 72 19 28 . . 62 109 2 4 330 Terrain Rammed . | . . . . . . . . . . . . . . . . . . . . Walls Destroyed . | . . . . . . . . . . . . . . . . . . . . Machines Disabled . | . . . . . . . . . . . . . . . . . . . . Actions | -11 -10 -10 -10 -9 -8 -7 -7 -7 -6 -6 -6 -6 -6 -5 -5 -5 -5 -5 -5 --------- Run | Scr Mat Min Exi Min Mat Fac Low Dat Pro Fac Low Low Zio Pro Fac Ext Cet Arc Hub Total 17319 | 130 2228 450 1736 44 607 1414 183 80 1053 1584 782 328 1004 711 1732 1007 863 272 1111 Wait 2986 | 22 727 14 55 . 95 221 5 2 397 372 136 3 9 168 371 109 187 3 90 Move 12446 | 77 1368 399 1518 40 444 1027 177 78 628 1019 621 281 967 532 1122 615 468 257 808 Hop 1 | . . . 1 . . . . . . . . . . . . . . . . Pick Up 293 | 5 34 14 41 1 26 22 . . 2 32 2 3 6 3 32 12 26 . 32 Fast Attach 112 | 1 2 2 7 . 4 10 . . 3 11 2 . 6 1 15 2 20 . 26 Attach 95 | 2 7 3 3 . 6 7 . . . 12 . . 1 . 12 8 13 4 17 Detach 28 | . . 1 2 . 1 2 . . 1 5 . . . . 8 1 4 . 3 Swap 248 | . 15 3 13 . 6 36 1 . . 53 4 14 2 . 42 20 28 2 9 Drop 323 | 5 26 10 32 2 17 27 . . 5 31 3 3 13 4 45 14 41 . 45 Fire 555 | 18 44 1 64 . 7 60 . . 4 44 14 16 . 3 82 42 76 5 75 Melee 2 | . . 2 . . . . . . . . . . . . . . . . . Ram 1 | . . . . . . . . . 1 . . . . . . . . . . Kick . | . . . . . . . . . . . . . . . . . . . . Crush 22 | . 5 1 . 1 1 2 . . . 1 . . . . 3 2 . . 6 Escape Stasis 4 | . . . . . . . . . . 4 . . . . . . . . . Rewire 191 | . . . . . . . . . . . . 8 . . . 182 . 1 . Trap 12 | . . . . . . . . . 12 . . . . . . . . . . Miscellaneous . | . . . . . . . . . . . . . . . . . . . . Route ------- -11/Scrapyard -10/Materials (discovered 5 exits: [*Mat x3] / *Min x2) -10/Mines (discovered 2 exits: [*Mat] / *Exi) -10/Exiles -9/Mines -8/Materials -7/Factory (discovered 3 exits: *Fac / *Low x2) -7/Lower Caves -7/Data Miner -6/Proximity Caves -6/Factory (discovered 2 exits: *Fac / *Low) -6/Lower Caves -6/Lower Caves (discovered 2 exits: *Fac / *Zio) -6/Zion -5/Proximity Caves -5/Factory (discovered 7 exits: *Fac x3 / *Upp x2 / *Ext x2) -5/Extension (discovered 3 exits: *Fac x2 / *Cet) -5/Cetus (discovered 2 exits: *Fac / *Arc) -5/Archives (discovered 3 exits: *Fac / *Hub x2) -5/Hub_04(d) History --------- Turn | Location | Event 1 | -11/Scrapyard | Discovered new exit (range 3) 193 | -11/Scrapyard | Entered Materials 300 | -10/Materials | Build established: Mutant 1015 | -10/Materials | Discovered new exit (range 5) 1105 | -10/Materials | Discovered new exit (range 16) 1405 | -10/Materials | Discovered new exit (range 8) 1408 | -10/Materials | Identified exit to Mines 1481 | -10/Materials | Repaired Lgt. Treads 2641 | -10/Materials | Discovered new exit (range 6) 2980 | -10/Materials | Entered Mines 3187 | -10/Mines | Found a damaged Exp. Sensor Array with a note attached 3192 | -10/Mines | Found Prototype Device 3206 | -10/Mines | YI-UF0 nonchalantly dropped a Grenade Launcher on the ground 3206 | -10/Mines | Destroyed YI-UF0 3212 | -10/Mines | Found Prototype Storage 3217 | -10/Mines | Identified YI-UF0's Bottomless Matter Pit 3499 | -10/Mines | Met a Derelict shopkeep closing up shop 3550 | -10/Mines | Discovered new exit (range 9) 3670 | -10/Mines | Assisted by bots powering up and referring to "LRC-V3" 3692 | -10/Mines | Learned Materials interactive machine intel 3733 | -10/Mines | Deemed a non-threat by the Exiles lab entrance 3733 | -10/Mines | Discovered new exit (range 5) 3753 | -10/Mines | Entered Exiles 3753 | -10/Exiles | Accompanied by 3 allies 3795 | -10/Exiles | Met 8R-AWN 3827 | -10/Exiles | Met EX-HEX 3885 | -10/Exiles | Met EX-BIN 3906 | -10/Exiles | Aligned with FarCom system 3908 | -10/Exiles | Given EX-Vault access code 3952 | -10/Exiles | Opened EX-Vault 3962 | -10/Exiles | Found Deploy-a-Sentry 3965 | -10/Exiles | Found Deploy-a-Sentry 3967 | -10/Exiles | Found Deploy-a-Sentry 4008 | -10/Exiles | DAS Turret deployed 4013 | -10/Exiles | DAS Turret deployed 4017 | -10/Exiles | DAS Turret deployed 4302 | -10/Exiles | Warned to stay clear of 0b10 Research branches 4308 | -10/Exiles | Attacked by the Exiles 4315 | -10/Exiles | Allies destroyed EX-BIN 4461 | -10/Exiles | Destroyed 8R-AWN 4707 | -10/Exiles | Core integrity fell below 50% 4721 | -10/Exiles | Core integrity fell below 20% 4757 | -10/Exiles | Lost 4 parts (1p1n1u1w) 5009 | -10/Exiles | Destroyed EX-HEX 5101 | -10/Exiles | Destroyed EX-DEC 5192 | -10/Exiles | Found Prototype Energy Gun 5192 | -10/Exiles | Identified AWS/EX-DEC 6434 | -10/Exiles | Build established: Hauler-Mutant 6749 | -10/Exiles | Discovered new exit (range 14) 6773 | -10/Exiles | Entered Mines 6809 | -9/Mines | Discovered new exit (range 15) 6814 | -9/Mines | Found the Drone Emporium 6829 | -9/Mines | Found Prototype Device 6857 | -9/Mines | Entered Materials 6857 | -8/Materials | Evolved 4 slots: Utility x3, Weapon x1 6858 | -8/Materials | Loaded intel: 19 interactive machine locations 6860 | -8/Materials | Identified Exp. Sensor Array 7123 | -8/Materials | Identified Bomb Drone Bay 7296 | -8/Materials | Build established: Hauler-Skirmisher 7736 | -8/Materials | Discovered new exit (range 14) 7925 | -8/Materials | Identified exit to Factory 7927 | -8/Materials | Entered Factory 7927 | -7/Factory | Evolved 2 slots: Utility x2 8224 | -7/Factory | Build established: Hauler-Gunner 8689 | -7/Factory | Build established: Hauler-Skirmisher 9038 | -7/Factory | Garrison activated, responded to threat 9686 | -7/Factory | Discovered new exit (range 16) 9713 | -7/Factory | Identified exit to Factory 10144 | -7/Factory | Identified exit to Lower Caves 10229 | -7/Factory | Fabricated L-41 Fighter? 10254 | -7/Factory | Entered Lower Caves 10254 | -7/Lower Caves | Accompanied by 3 allies 10486 | -7/Lower Caves | A Derelict revealed a hidden shortcut to meet someone special 10503 | -7/Lower Caves | Identified exit to Data Miner 10509 | -7/Lower Caves | Entered Data Miner 10509 | -7/Data Miner | Accompanied by 3 allies 10509 | -7/Data Miner | Discovered new exit (range 6) 10536 | -7/Data Miner | Met Data Miner 10564 | -7/Data Miner | Learned location of Section 7 (-2) 10564 | -7/Data Miner | Acquired the access code to Warlord's prototype stash 10586 | -7/Data Miner | Received God Mode back door access code from Data Miner 10617 | -7/Data Miner | Identified exit to Proximity Caves 10621 | -7/Data Miner | Entered Proximity Caves 10621 | -6/Proximity Caves | Accompanied by 3 allies 10854 | -6/Proximity Caves | Escorted by Enhanced Grunt 11610 | -6/Proximity Caves | Found Prototype Device 11610 | -6/Proximity Caves | Identified Exp. Thermal Shield 11899 | -6/Proximity Caves | Discovered exit to Factory (range 15) 11924 | -6/Proximity Caves | Attracted the attention of an 0b10 outpost 11934 | -6/Proximity Caves | Entered Factory 11934 | -6/Factory | Evolved 2 slots: Utility x2 12840 | -6/Factory | Fabricated Lgt. Regenerative Plating (x1) 12845 | -6/Factory | Local fabrication network quarantined 13984 | -6/Factory | Discovered new exit (range 16) 14115 | -6/Factory | Identified exit to Factory 14734 | -6/Factory | First assault squad dispatched 14781 | -6/Factory | Discovered new exit (range 16) 14812 | -6/Factory | Identified exit to Lower Caves 14817 | -6/Factory | Entered Lower Caves 15129 | -6/Lower Caves | Build established: Hauler-Mutant 15491 | -6/Lower Caves | Learned 8 Factory zone layouts 15505 | -6/Lower Caves | Learned location of Extension (-5) 16342 | -6/Lower Caves | Discovered new exit (range 10) 16360 | -6/Lower Caves | Identified exit to Lower Caves 16362 | -6/Lower Caves | Entered another Lower Caves area 16362 | -6/Lower Caves | Discovered exit to Factory (range 7) 16532 | -6/Lower Caves | Encountered a Warlord checkpoint 16804 | -6/Lower Caves | Attracted the attention of an 0b10 outpost 16840 | -6/Lower Caves | Destroyed 8 combat bots 16923 | -6/Lower Caves | Discovered new exit (range 9) 16999 | -6/Lower Caves | Build established: Hauler-Skirmisher 17064 | -6/Lower Caves | Identified exit to Zion 17066 | -6/Lower Caves | Entered Zion 17066 | -6/Zion | Accompanied by 2 allies 17158 | -6/Zion | Found Prototype Processor 17158 | -6/Zion | Identified Spectral Analyzer 17163 | -6/Zion | Found Prototype Processor 17163 | -6/Zion | Identified Exp. Melee Analysis Suite 17169 | -6/Zion | Found Prototype Processor 17169 | -6/Zion | Identified Exp. Core Analyzer 17183 | -6/Zion | Found Exp. Signal Interpreter 17241 | -6/Zion | System corruption cleaned by Quarantine Array 17418 | -6/Zion | Gained Derelict followers 17450 | -6/Zion | Build established: Hauler-Mutant 17555 | -6/Zion | Learned location of Warlord (-5) 17623 | -6/Zion | Learned Factory non-interactive machine intel 17673 | -6/Zion | Given A8's code to call for help 17763 | -6/Zion | Gained Derelict followers 18661 | -6/Zion | Imprinted 18663 | -6/Zion | Declared Zion's savior 19128 | -6/Zion | Discovered new exit (range 12) 19216 | -6/Zion | Identified exit to Proximity Caves 19228 | -6/Zion | Entered Proximity Caves 19228 | -5/Proximity Caves | Accompanied by 16 allies 20026 | -5/Proximity Caves | Learned 4 Factory zone layouts 20456 | -5/Proximity Caves | Discovered exit to Factory (range 12) 20489 | -5/Proximity Caves | Entered Factory 20489 | -5/Factory | Accompanied by 7 allies 20489 | -5/Factory | Evolved 2 slots: Utility x2 20490 | -5/Factory | Identified exit to Factory 20490 | -5/Factory | Identified exit to Extension 20491 | -5/Factory | Loaded intel: 211 non-interactive machine locations 20515 | -5/Factory | Incoming investigation squad redirected 21178 | -5/Factory | Fabricated Exp. Sensor Array (x1) 21272 | -5/Factory | Retrieved Zion intel report: Branch Access 21272 | -5/Factory | Identified exit to Upper Caves 21273 | -5/Factory | Zion Resource Resupply teleported in 21757 | -5/Factory | Build established: Hauler-Gunner 22087 | -5/Factory | Terminal network hard line cut 22695 | -5/Factory | System corruption reached 10% 23780 | -5/Factory | Entered Extension 23955 | -5/Extension | Zion Fire squad teleported in 24023 | -5/Extension | Rescued A7 24241 | -5/Extension | Retrieved Zion intel report: Depthwide Sectors/0 24269 | -5/Extension | Zion Hacker squad teleported in 24826 | -5/Extension | Rescued a captive Derelict 24827 | -5/Extension | Rescued a captive Derelict 24828 | -5/Extension | Retrieved Zion intel report: Prototype Stockpiles 24829 | -5/Extension | Zion Demo squad teleported in 24946 | -5/Extension | Spotted B-75 Beast 24954 | -5/Extension | Spotted B-75 Beast 24955 | -5/Extension | Disrupted transfer network 24957 | -5/Extension | Allies destroyed B-75 Beast 24966 | -5/Extension | Allies destroyed B-75 Beast 24988 | -5/Extension | Terminal network hard line cut 25058 | -5/Extension | Destroyed 8 combat bots 25119 | -5/Extension | Discovered exit to Factory (range 12) 25187 | -5/Extension | Build established: Hauler-Mutant 25320 | -5/Extension | Discovered exit to Factory (range 16) 25320 | -5/Extension | Discovered new exit (range 16) 25397 | -5/Extension | Identified exit to Cetus 25533 | -5/Extension | Entered Cetus 25533 | -5/Cetus | Accompanied by 1 ally (A7) 25538 | -5/Cetus | Acquired a Cetus Manufacturing Module code from A7 25575 | -5/Cetus | Spotted Cetus Guard 25575 | -5/Cetus | Spotted Cetus Guard 25580 | -5/Cetus | Destroyed Cetus Guard 25580 | -5/Cetus | Spotted Cetus Guard 25581 | -5/Cetus | Extracted ID and sensor layout for unrecognized location from A7's data core 25585 | -5/Cetus | Found Prototype Protection 25585 | -5/Cetus | Identified Med. Regenerative Plating 25594 | -5/Cetus | Destroyed Cetus Guard 25594 | -5/Cetus | Spotted Cetus Guard 25604 | -5/Cetus | Destroyed Cetus Guard 25614 | -5/Cetus | Destroyed Cetus Guard 25805 | -5/Cetus | Cetus Manufacturing Module disabled 25843 | -5/Cetus | Destroyed 7 combat bots 25862 | -5/Cetus | Retrieved Zion intel report: Depthwide Sectors/-1 25863 | -5/Cetus | Zion Recon squad teleported in 25892 | -5/Cetus | Discovered new exit (range 41) 25901 | -5/Cetus | Discovered exit to Factory (range 59) 25901 | -5/Cetus | Spotted Cetus Guard 25904 | -5/Cetus | Spotted Cetus Guard 26102 | -5/Cetus | Build established: Hauler-Gunner 26104 | -5/Cetus | Destroyed 7 combat bots 26127 | -5/Cetus | Failed to start Cetus Manufacturing Module 26128 | -5/Cetus | Zion Infowar Resupply teleported in 26141 | -5/Cetus | Zion Infowar Resupply teleported in 26149 | -5/Cetus | Found Prototype Device 26149 | -5/Cetus | Identified Exp. Terrain Scanner 26215 | -5/Cetus | Enhanced Grunt warped into view, answering call for help 26219 | -5/Cetus | Enhanced Grunt warped into view, answering call for help 26632 | -5/Cetus | Build established: Hauler-Mutant 26778 | -5/Cetus | Spotted Cetus Guard 26780 | -5/Cetus | Destroyed Cetus Guard 26787 | -5/Cetus | Destroyed Cetus Guard 26793 | -5/Cetus | Destroyed Cetus Guard 26797 | -5/Cetus | Spotted Cetus Guard 26802 | -5/Cetus | Destroyed Cetus Guard 26820 | -5/Cetus | Terminal network hard line cut 26823 | -5/Cetus | Destroyed 8 combat bots 26830 | -5/Cetus | Scared off Revision 17 26954 | -5/Cetus | Found Exp. Thermal Shield 27016 | -5/Cetus | Entered Archives 27070 | -5/Archives | Met Zhirov 27076 | -5/Archives | Reinforcements dispatched to Archives 27095 | -5/Archives | Discovered new exit (range 15) 27121 | -5/Archives | Reinforcements dispatched to Archives 27123 | -5/Archives | Zhirov warped through subspace 27123 | -5/Archives | Read partially decrypted archive contents 27141 | -5/Archives | Zhirov detonated Archives 27163 | -5/Archives | Discovered new exit (range 16) 27172 | -5/Archives | Lost 5 parts (1p2u2w) 27173 | -5/Archives | Discovered exit to Factory (range 16) 27431 | -5/Archives | Build established: Scavenger-Mutant 27461 | -5/Archives | Identified exit to Hub_04(d) 27515 | -5/Archives | Entered Hub_04(d) 27552 | -5/Hub_04(d) | Zion Infowar Resupply teleported in 27555 | -5/Hub_04(d) | Garrison activated, responded to threat 27607 | -5/Hub_04(d) | Core integrity fell below 50% 27800 | -5/Hub_04(d) | Retrieved Zion intel report: Guard Positions 27801 | -5/Hub_04(d) | Zion Melee Resupply teleported in 27869 | -5/Hub_04(d) | Zion Hacking Resupply teleported in 27966 | -5/Hub_04(d) | Retrieved Zion intel report: Component Stockpiles 28314 | -5/Hub_04(d) | Network Hub disabled 28445 | -5/Hub_04(d) | Spotted Lightning 28449 | -5/Hub_04(d) | Spotted Lightning 28463 | -5/Hub_04(d) | Spotted Lightning 28479 | -5/Hub_04(d) | Destroyed Lightning 28490 | -5/Hub_04(d) | Destroyed Lightning 28522 | -5/Hub_04(d) | Destroyed Lightning 28527 | -5/Hub_04(d) | Found Prototype Processor 28527 | -5/Hub_04(d) | Identified Exp. Targeting Computer 28531 | -5/Hub_04(d) | Found Prototype Device 28531 | -5/Hub_04(d) | Identified Exp. Phase Shifter 28838 | -5/Hub_04(d) | Terminal network hard line cut 28893 | -5/Hub_04(d) | Build established: Scavenger-Gunner 29015 | -5/Hub_04(d) | First assault squad dispatched 29040 | -5/Hub_04(d) | Incoming assault squad redirected 29172 | -5/Hub_04(d) | Core integrity fell below 20% 29347 | -5/Hub_04(d) | Spotted Lightning 29348 | -5/Hub_04(d) | Spotted Lightning 29355 | -5/Hub_04(d) | System corruption reached 30% 29362 | -5/Hub_04(d) | Network Hub disabled 29362 | -5/Hub_04(d) | Spotted Lightning 29389 | -5/Hub_04(d) | Destroyed Lightning 29400 | -5/Hub_04(d) | Destroyed by Lightning with EMDS Last Messages --------------- 29380_ Penetrated by EMDS Slug. 29380_ Critical hit. 29380_ Tri-rail Accelerator destroyed. 29381_ Penetrated by EMDS Slug. 29382_ System corrupted: Tri-rail Accelerator targeting data glitched. 29387_ System corrupted: Imp. KE Penetrator jammed. 29387_ System corrupted: Tri-rail Accelerator targeting data glitched. 29387_ Penetrated by EMDS Slug. 29387_ EMDS Slug penetrates Backup Mainframe. 29389_ Slug penetrates Lightning. 29389_ Lightning destroyed. 29391_ 0%YGXV0PXZIZE<%P|>L 29392_ System corrupted: Imp. KE Penetrator targeting data glitched. 29392_ Slug penetrates Lightning. 29392_ Lightning knocked back. 29394_ Penetrated by EMDS Slug. 29394_ Acquired 62 matter. 29400_ Bomb Drone released from Bomb Drone Bay. 29400_ Penetrated by EMDS Slug. Map ----- +----------------------------------------------------+ | | | | | | | | | | | | | | | | | | | | | | | | | | | | | | | | | | | | | | | ??????#####################;;;; | | ??????# ] # ; | | ??????# / ; ;# | | ??????# #! ; | | ??????# # ! #? | | ??????# # =*=n #? | | ??????# h ] ! @ #? | | ??????# # ] #? | | ??########## ###;;;;;;; ; !;###? | | ??# !! h #? | | ### ###########;;;;;;; ;; ; | | # "#??????# ;;;;;;; ;;; ; ## | | " # ##??????# ; % ; ; #? | | " " #???????# ; ; ; #? | | " " ##?????# ; ; ; #? | | "*"####### ; ; ; #? | | !%! ##;;;; ; ; #? | | """ = ; ; ; #? | | [=%! " ; ; #? | | %| ""#""" ; ; #? | | "" * ####?? ; ; #? | | " #######? ; " #? | | # + #???? " " ?? | | # =% # " " #??????""""" ???? | | # # " " #??????????? ???? | | ##"/#####?" " #??????????? ???? | | # #?? #???????????????? | | # #??? " #???????????????? | | # " " #??? " #???????????????? | | # "T" #????" #???????????????? | | ## """ #???? #???????????????? | +----------------------------------------------------+ Best States ------------- Heat Dissipation 78 Energy Generation 25 Energy Capacity 950 Matter Stores 464 Matter Capacity 1800 Sight Range 22 Robot Scan Range 30 Terrain Scan Range 30 Terrain Scan Density 10 Jamming Range 16 Power Amplification 20 Armor Coverage 825 Resistance: KI 25 Resistance: TH 30 Resistance: EM 25 Core Shielding 20 Power Shielding 66 Weapon Shielding 66 Weapon Cycling 20 Phase Shifting 20 Evasion (%) 60 Targeting Accuracy 12 Core Analysis 15 Armor Integrity Analysis 50 Recoil Reduction 2 Kinecelleration 40 Item Schematics ----------------- Exp. Sensor Array | -8/Materials | Scanalyzed Adv. Signal Interpreter | -8/Materials | Scanalyzed Combat Drone Bay | -7/Data Miner | Free Lgt. Regenerative Plating | -7/Data Miner | Free Exp. Cesium-ion Thruster | -7/Data Miner | Free Triangulator | -7/Data Miner | Free Exp. Terrain Scan Processor | -7/Data Miner | Free Proton Missile Launcher | -6/Factory | Scanalyzed Exp. Thermal Shield | -6/Factory | Scanalyzed Exp. Signal Interpreter | -5/Factory | Scanalyzed Robot Schematics ------------------ S-27 Virus | -7/Data Miner | Free G-50 Soldier | -7/Data Miner | Free G-67 Veteran | -7/Data Miner | Free L-41 Fighter | -7/Data Miner | Free H-66 Slayer | -7/Data Miner | Free I-36 Angel | -7/Data Miner | Free I-47 Archangel | -7/Data Miner | Free Fabricated ------------ L-41 Fighter | x3 | -7/Factory | Preloaded Lgt. Regenerative Plating | x1 | -6/Factory Exp. Sensor Array | x1 | -5/Factory Alien Tech Used ----------------- None Achievements -------------- Help From High Places Project G-00 Revising The Future Challenges ------------ None Game ------ Seed SegregatorSensorMatrix Manual? 0 Play Time 04:41:31 Cumulative 207.9 hours Start 2021.04.09 @ 09:31:58 End 2021.04.09 @ 14:53:20 Sessions 1 Manual Loads 0 Difficulty Rogue Special Mode None Game No. 127 Rogue 127 Adventurer 0 Explorer 0 Win Type - Total 3 Types 3/0/0/0/0/0/0/0/0 Lore% 46 Gallery% 68 Achievement% 53 Wizard Run 0 Options --------- ASCII 0 Keyboard 0 Movement Numpad Keybinds 0 Fullscreen 2 Font 18/TerminusBold Map View 76x50 Tactical HUD 1 Map Filters NONE Filters NONE Steam 1 RUN: 7f6528f2-77b2-4af7-a0c3-13412de4db3e